bitfinex/quotes_ETHUSD_20250331
["timestamp","ask_amount","ask_price","bid_price","bid_amount"]
[1743427984120,3.0,1807.3,1805.6,0.8149]
[1743427984326,8.53474,1806.8,1805.7,5.53801]
[1743427984619,5.53326,1807.3,1806.7,5.53482]
[1743427984832,0.48907781,1807.1,1806.1,5.53679]
[1743427985120,0.48907781,1807.1,1807.0,5.53403]
[1743427985292,2.34e-06,1807.2,1807.1,5.53372]
[1743427985719,5.89e-06,1807.6,1807.5,5.5325]
[1743427985923,5.89e-06,1807.6,1807.0,1.106835]
[1743427986126,5.89e-06,1807.6,1807.2,5.53327]
[1743427986298,5.89e-06,1807.6,1807.2,5.5333]
[1743427986508,5.89e-06,1807.6,1807.2,5.53335]
[1743427986708,5.89e-06,1807.6,1806.6,0.7801]
[1743427986709,40.47193,1807.7,1806.4,12.164]
[1743427986915,3.0,1807.3,1806.0,0.8206]
[1743427987148,5.83363,1807.2,1806.1,5.53679]
[1743427987293,3.0,1807.2,1806.1,5.53679]
[1743427987492,3.0,1807.3,1806.8,5.53464]
[1743427987697,8.53269,1807.5,1807.0,5.53383]
[1743427987933,3.0,1807.6,1806.4,5.53557]
[1743427988228,5.53364,1807.2,1806.6,5.53497]
[1743427988437,3.0,1807.4,1807.0,5.53386]
[1743427988642,8.53282,1807.4,1806.9,5.53422]
[1743427988799,0.853252,1807.4,1806.9,5.53424]
[1743427989147,3.0,1807.2,1806.8,5.53449]
[1743427989502,3.0,1806.8,1806.4,5.53575]
[1743427989697,3.0,1807.1,1805.9,5.53726]
[1743427989898,3.0,1807.1,1805.5,0.773]
[1743427989899,5.53725,1806.0,1805.3,5.53905]
[1743427990130,5.53725,1806.0,1805.6,5.53818]
[1743427990327,3.0,1806.1,1805.2,5.53944]
[1743427990518,3.0,1805.9,1805.4,5.53871]
[1743427990719,3.0,1806.0,1805.7,5.53798]
[1743427991032,12.68,1806.4,1805.8,5.53758]
[1743427991033,5.53635,1806.3,1805.8,5.53758]
[1743427991218,5.53635,1806.3,1805.1,5.31743413]
[1743427991219,0.3337,1806.3,1805.1,0.1]
[1743427991408,8.53722,1806.0,1805.5,5.53848]
[1743427991614,3.0,1805.7,1805.2,5.53927]
[1743427991927,0.0208494,1805.8,1805.4,5.53866]
[1743427992235,0.0208494,1805.8,1805.4,5.53871]
[1743427992236,3.0208494,1805.8,1805.4,5.53871]
[1743427992398,0.0208494,1805.8,1805.1,5.63985]
[1743427992604,0.0208494,1805.8,1805.7,5.53801]
[1743427992820,9.4e-06,1805.8,1805.7,5.53801]
[1743427993511,9.4e-06,1805.8,1805.7,10.75544413]
[1743427993702,9.4e-06,1805.8,1805.7,5.53801]
[1743427994036,9.4e-06,1805.8,1805.7,5.51922086]
[1743427994363,9.4e-06,1805.8,1805.6,11.07644]
[1743427994515,9.4e-06,1805.8,1805.7,5.53801]
[1743427995046,9.4e-06,1805.8,1805.7,6.645633]
[1743427995213,0.45482133,1807.1,1807.0,5.53403]
[1743427995415,1.33e-06,1807.1,1807.0,5.53403]
[1743427995746,1.33e-06,1807.1,1807.0,5.5893711]
[1743427995923,5.53126,1808.0,1807.6,5.53219]
[1743427995924,0.83165932,1808.0,1807.6,5.53219]
[1743427996124,0.83165932,1808.0,1806.9,5.21743413]
[1743427996308,0.83165932,1808.0,1807.7,5.53171]
[1743427996643,0.83165932,1808.0,1807.6,5.53198]
[1743427997044,0.83165932,1808.0,1807.5,5.53245]
[1743427997343,0.83165932,1808.0,1807.6,5.53205]
[1743427997512,0.83165932,1808.0,1807.7,5.53188]
[1743427997714,0.83165932,1808.0,1807.8,5.53158]
[1743427997925,0.83165932,1808.5,1808.3,5.52977]
[1743427998119,0.83165932,1808.5,1808.2,5.53036]
[1743427998365,3.0,1808.2,1807.7,5.53177]
[1743427998529,8.53009,1808.3,1807.8,5.53156]
[1743427998731,3.83165932,1808.5,1807.6,5.53219]
[1743427998916,0.38316593,1808.4,1808.1,5.53042]
[1743427999112,6.36121932,1808.5,1808.1,5.53042]
[1743427999312,0.83165932,1808.5,1808.3,5.52992]
[1743427999543,0.1,1808.9,1808.3,5.52989]
[1743427999730,0.1,1808.9,1808.3,0.05530059]
[1743427999931,0.1,1808.9,1807.7,5.53174]
[1743428000152,0.1,1808.9,1807.5,5.53229]
[1743428000153,3.0,1808.1,1807.5,5.53229]
[1743428000325,3.0,1808.1,1806.3,5.53588]
[1743428000326,3.0,1807.4,1806.4,0.907]
[1743428000634,3.0,1807.6,1806.6,5.53525]
[1743428000817,5.53373,1807.1,1806.6,11.07011]
[1743428001013,0.55,1807.2,1806.3,5.53613]
[1743428001219,3.0,1806.9,1806.5,5.5354]
[1743428001562,3.0,1806.9,1806.1,5.63667]
[1743428001563,0.3337,1806.7,1806.2,5.53618]
[1743428001758,0.3337,1806.7,1806.2,5.53648]
[1743428002049,3.0,1806.2,1806.1,0.1]
[1743428002258,3.0,1806.5,1806.1,5.63667]
[1743428002444,3.0,1806.6,1806.1,0.1]
[1743428002624,5.53556,1806.5,1806.1,0.1]
[1743428002825,0.69357379,1806.2,1806.1,0.1]
[1743428003156,3.0,1806.1,1805.4,5.53872]
[1743428003462,3.0,1805.7,1805.1,0.1]
[1743428003662,8.53955,1805.2,1805.1,0.1]
[1743428003836,41.661205,1805.2,1805.1,0.1]
[1743428004023,47.223804,1805.2,1805.1,0.1]
[1743428004356,35.2677,1805.2,1805.1,0.1]
[1743428004657,1.02727379,1806.2,1805.1,0.1]
[1743428004959,4.02727379,1806.2,1805.7,5.53794]
[1743428005128,1.02727379,1806.2,1806.0,5.53706]
[1743428005457,0.69357379,1806.1,1805.8,5.53752]
[1743428005659,0.69357379,1806.1,1805.4,5.53873]
[1743428005831,0.69357379,1806.1,1806.0,5.53709]
[1743428006025,0.69357379,1806.1,1805.9,0.10848665]
[1743428006224,3.0,1805.8,1805.3,5.53898]
[1743428006447,0.3337,1805.9,1805.7,5.53781]
[1743428006647,0.69357379,1806.1,1806.0,5.53709]
[1743428006954,0.3337,1806.3,1805.9,5.53718]
[1743428007270,3.0,1806.1,1805.6,5.53817]
[1743428007440,0.853649,1806.1,1805.7,5.53773]
[1743428007639,0.853649,1806.1,1805.5,5.53837]
[1743428007640,0.853649,1806.1,1805.8,5.53744]
[1743428007835,0.3337,1806.3,1805.4,5.53891]
[1743428008049,5.53515,1806.7,1806.2,5.53648]
[1743428008381,3.0,1806.6,1806.0,5.53683]
[1743428008572,3.0,1806.3,1805.5,5.5386]
[1743428008725,8.53618,1806.3,1805.5,5.53863]
[1743428009059,9.943398,1806.3,1805.8,5.53752]
[1743428009257,9.943638,1806.3,1805.8,5.53752]
[1743428009462,9.943638,1806.3,1805.6,5.53813]
[1743428009463,8.21235306,1806.1,1805.3,5.53908]
[1743428009684,3.55,1805.6,1805.1,0.1]
[1743428009964,9.42325,1805.2,1805.1,0.1]
[1743428010151,32.256838,1805.2,1805.1,1e-05]
[1743428010354,5.54099,1804.8,1804.1,0.1]
[1743428010560,3.0,1804.5,1804.1,0.1]
[1743428010938,3.0,1804.3,1804.1,0.1]
[1743428011254,3.0,1804.5,1804.1,5.64292]
[1743428011454,0.3337,1804.6,1804.3,5.54226]
[1743428011642,0.3337,1804.6,1804.4,5.54187]
[1743428011848,8.87391,1805.0,1804.5,5.54146]
[1743428012167,8.54123,1804.7,1804.2,5.54248]
[1743428012468,5.54003,1805.1,1804.5,5.54158]
[1743428012673,5.54003,1805.1,1804.3,5.54231]
[1743428012674,5.53986,1805.1,1804.3,5.54231]
[1743428012838,0.26576463,1804.9,1804.2,0.9277]
[1743428013172,0.26576463,1804.9,1804.6,5.54123]
[1743428013481,0.26576463,1804.9,1804.1,0.1]
[1743428013837,0.26576463,1804.9,1804.7,5.54106]
[1743428014164,3.3337,1805.0,1804.4,5.542]
[1743428014485,5.54092,1804.8,1804.1,5.6427]
[1743428014693,3.0,1804.8,1804.1,0.1]
[1743428014855,1.21707,1805.0,1804.1,0.1]
[1743428015058,8.54124,1804.7,1804.1,0.1]
[1743428015364,0.3337,1805.0,1804.1,0.1]
[1743428015365,3.0,1804.9,1804.1,0.1]
[1743428015583,3.0,1804.6,1804.1,5.64276]
[1743428015872,3.0,1804.3,1804.1,0.1]
[1743428016081,3.0,1804.9,1804.1,0.1]
[1743428016283,0.887389,1804.9,1804.1,0.1]
[1743428016569,3.3337,1805.0,1804.1,0.1]
[1743428016570,5.54108,1804.7,1804.1,0.1]
[1743428016736,5.54202,1804.4,1804.1,0.1]
[1743428016940,5.54209,1804.4,1804.1,0.1]
[1743428017148,8.54262,1804.2,1804.1,0.1]
[1743428017346,3.0,1804.2,1804.1,0.1]
[1743428017546,3.0,1804.2,1804.1,5.64292]
[1743428017763,3.0,1804.2,1804.1,0.1]
[1743428017970,8.54262,1804.2,1804.1,0.1]
[1743428018250,3.0,1804.2,1804.1,0.1]
[1743428018447,3.0,1804.6,1804.1,0.1]
[1743428018646,3.0,1804.5,1804.1,0.1]
[1743428018845,17.53551,1804.9,1804.1,5.64277]
[1743428019046,5.54249,1804.3,1804.1,0.1]
[1743428019250,3.0,1804.2,1804.1,0.1]
[1743428019446,27.534115,1804.2,1804.1,0.1]
[1743428019776,0.55,1803.9,1803.1,5.64582]
[1743428019976,8.54569,1803.2,1803.1,0.1]
[1743428020142,3.0,1803.5,1803.1,0.1]
[1743428020345,8.54569,1803.2,1803.1,0.1]
[1743428020574,3.0,1803.2,1803.1,0.1]
[1743428020773,3.0,1803.2,1803.1,0.22736163]
[1743428021142,5.54523,1803.4,1803.1,0.1]
[1743428021347,3.0,1803.5,1803.1,5.64597]
[1743428021572,3.0,1803.5,1803.2,5.66129878]
[1743428021779,3.0,1803.5,1803.1,0.1]
[1743428021947,3.0,1803.5,1803.2,5.6608044]
[1743428022144,3.0,1803.8,1803.3,5.54538]
[1743428022349,5.54359,1803.9,1803.5,5.54449]
[1743428022566,0.3337,1804.2,1803.6,0.11464383]
[1743428022882,0.3337,1804.2,1803.7,5.54392]
[1743428023050,0.4979,1804.7,1803.8,0.05543936]
[1743428023252,0.4979,1805.2,1804.0,5.54323]
[1743428023451,5.5403,1805.0,1804.5,5.54151]
[1743428023668,5.54016,1805.0,1804.5,11.08317]
[1743428023857,0.4979,1805.2,1804.6,5.6532011]
[1743428024085,0.4979,1805.2,1804.3,5.54231]
[1743428024283,5.5405,1804.9,1804.7,0.10907745]
[1743428024583,5.54069,1804.9,1804.4,5.5418]
[1743428024799,5.54128,1804.7,1804.5,0.10937734]
[1743428025106,5.54079,1804.8,1804.3,5.5422]
[1743428025400,5.54089,1804.8,1804.0,5.54306]
[1743428025617,3.0,1804.1,1803.4,5.54479]
[1743428025933,3.0,1804.1,1803.6,5.54445]
[1743428025934,3.0,1804.0,1803.6,5.54445]
[1743428026116,0.4979,1804.8,1803.7,0.05544122]
[1743428026322,32.39055893,1805.3,1804.0,5.54323]
[1743428026523,31.979,1805.3,1804.7,5.54092]
[1743428026820,5.53979,1805.2,1804.6,5.54131]
[1743428026973,11.07864,1805.3,1804.4,5.542]
[1743428027177,0.4979,1805.4,1804.5,0.05540976]
[1743428027406,5.53802,1805.7,1805.0,5.54005]
[1743428027618,5.53772,1805.8,1805.2,5.5394]
[1743428027821,3.0,1805.6,1805.3,5.53903]
[1743428027985,3.0,1805.8,1804.7,0.9876]
[1743428028302,0.5979,1805.9,1804.7,0.9876]
[1743428028303,0.1,1805.9,1804.7,0.9876]
[1743428028508,0.1,1805.9,1805.4,5.53893]
[1743428028815,0.1,1805.9,1804.7,0.9876]
[1743428028816,5.53894,1805.4,1804.7,1.04298455]
[1743428028977,5.53795,1805.8,1805.2,5.53933]
[1743428029177,5.63742,1805.9,1805.2,5.53933]
[1743428029178,0.1,1805.9,1805.5,5.53838]
[1743428029393,0.1,1805.9,1805.8,5.53771]
[1743428029602,0.1,1805.9,1805.1,5.53985]
[1743428029774,0.1,1805.9,1805.3,5.5392]
[1743428029970,0.1,1805.9,1805.8,5.53771]
[1743428030294,0.1,1805.9,1805.3,0.9168]
[1743428030702,0.15199212,1805.8,1805.3,0.9168]
[1743428031005,0.15199212,1805.8,1805.1,5.5397]
[1743428031006,8.53843,1805.6,1805.1,5.5397]
[1743428031171,14.07704,1805.6,1805.1,5.5397]
[1743428031376,3.0,1805.6,1805.1,5.53956]
[1743428031577,8.53875,1805.5,1805.1,5.53956]
[1743428031776,5.68996212,1805.8,1805.4,5.53876]
[1743428031999,5.68996212,1805.8,1805.1,6.093806]
[1743428032000,0.15199212,1805.8,1805.1,0.553956]
[1743428032211,5.53821,1805.7,1805.2,5.53955]
[1743428032404,3.0,1805.6,1805.2,5.5395]
[1743428032605,3.15199212,1805.8,1805.4,5.53874]
[1743428032907,8.53846,1805.6,1805.2,5.53953]
[1743428033408,0.15199212,1805.8,1805.6,5.53811]
[1743428033615,0.15199212,1805.8,1805.5,5.53861]
[1743428033790,0.15199212,1805.8,1805.7,5.53801]
[1743428034686,0.15199212,1805.8,1805.6,0.949]
[1743428034886,5.53866,1805.5,1805.2,0.949]
[1743428035113,5.53835,1805.6,1805.2,0.949]
[1743428035315,3.0,1805.6,1804.8,5.54072]
[1743428035516,0.15199212,1805.8,1804.8,0.652242]
[1743428035703,0.15199212,1805.8,1805.6,5.53822]
[1743428035904,0.15199212,1805.8,1805.6,11.07639]
[1743428036093,0.1,1805.9,1805.8,5.53771]
[1743428036413,0.1,1805.9,1805.3,5.53924]
[1743428036716,0.1,1805.9,1805.6,5.53819]
[1743428037018,5.53772,1805.8,1805.4,5.53893]
[1743428037315,5.53772,1805.8,1805.4,11.07756]
[1743428037503,5.53831,1805.7,1805.3,5.53919]
[1743428037814,5.53831,1805.7,1805.3,5.53914]
[1743428038116,0.1,1805.9,1805.3,5.53914]
[1743428038117,0.1,1805.9,1805.3,1.107838]
[1743428038294,0.1,1805.9,1805.7,5.53789]
[1743428038494,0.1,1805.9,1805.7,5.53782]
[1743428038694,0.1,1805.9,1805.8,5.5930843]
[1743428039112,1e-05,1805.9,1805.8,6.50631]
[1743428039299,1e-05,1805.9,1805.8,7.710723]
[1743428039494,1e-05,1805.9,1805.8,6.50631]
[1743428040097,1e-05,1805.9,1805.6,5.53815]
[1743428040302,5.53796,1805.8,1805.3,6.44472]
[1743428040497,5.5383,1805.7,1805.3,5.53912]
[1743428040699,3.0,1805.7,1805.1,5.53982]
[1743428041020,5.53824,1805.7,1805.2,5.53942]
[1743428041318,0.853824,1805.7,1804.9,0.9449]
[1743428041536,3.0,1805.7,1805.2,5.53943]
[1743428041833,3.0,1805.7,1805.2,5.53955]
[1743428041988,3.0,1805.7,1805.3,5.5392]
[1743428042188,5.5389,1805.5,1805.1,5.53956]
[1743428042809,5.53979,1805.2,1804.5,0.967]
[1743428043018,5.53989,1805.1,1804.7,5.54083]
[1743428043196,5.94815343,1805.7,1804.8,5.59618471]
[1743428043396,5.53751,1805.9,1805.1,5.53985]
[1743428043600,8.53832,1805.6,1804.9,11.389]
[1743428043804,5.53876,1805.5,1805.1,5.53972]
[1743428043999,5.53899,1805.4,1805.0,5.54002]
[1743428044224,1e-05,1805.9,1805.1,0.05539604]
[1743428044417,5.53896,1805.4,1805.0,5.54014]
[1743428044610,3.0,1805.3,1804.8,5.5407]
[1743428044814,5.53955,1805.2,1804.5,0.967]
[1743428045123,5.53985,1805.1,1804.1,0.9554]
[1743428045289,5.54125,1804.7,1804.2,5.54262]
[1743428045491,5.54125,1804.7,1803.8,11.371]
[1743428045492,5.54215,1804.4,1803.8,11.371]
[1743428045720,3.0,1804.3,1803.9,5.54334]
[1743428045922,0.4979,1804.7,1804.3,5.5423]
[1743428046130,3.0,1804.8,1804.5,5.54165]
[1743428046302,6.13,1804.9,1804.6,5.54126]
[1743428046500,3.0,1805.0,1804.8,5.54058]
[1743428046709,3.0,1805.0,1804.7,5.54105]
[1743428046913,6.6279,1805.2,1804.9,5.54034]
[1743428047118,12.16748,1805.2,1804.8,5.54058]
[1743428047323,5.54062,1804.9,1804.5,5.54166]
[1743428047622,6.13,1805.6,1804.9,5.54027]
[1743428047922,3.0,1805.5,1805.1,5.53972]
[1743428048099,5.94862123,1805.2,1804.6,11.288]
[1743428048305,5.5403,1805.0,1804.6,11.288]
[1743428048516,6.13,1805.2,1804.4,0.9627]
[1743428048517,8.53989,1805.1,1804.4,0.9627]
[1743428048724,6.13,1805.5,1804.9,5.54032]
[1743428048927,6.743,1805.5,1805.2,5.53952]
[1743428049228,6.743,1805.5,1805.1,5.53972]
[1743428049229,6.13,1805.5,1805.1,5.53972]
[1743428049406,11.66874,1805.5,1805.1,5.53972]
[1743428049728,0.91637708,1805.7,1804.8,5.54077]
[1743428050025,3.0,1805.5,1805.2,5.53943]
[1743428050231,5.53743,1805.9,1805.2,5.53955]
[1743428050395,1e-05,1805.9,1805.2,5.53955]
[1743428050723,5.53801,1805.7,1805.0,5.54015]
[1743428050927,0.55,1805.4,1804.4,0.9964]
[1743428051130,0.55,1805.1,1803.9,6.50565]
[1743428051334,0.55,1805.1,1804.6,5.54139]
[1743428051335,3.0,1804.9,1804.6,5.54139]
[1743428051500,8.54019,1805.0,1804.6,5.54127]
[1743428051704,3.0,1805.0,1804.3,5.54203]
[1743428051905,3.0,1805.0,1804.6,5.54109]
[1743428052255,3.0,1805.0,1804.5,5.54159]
[1743428052425,3.0,1804.7,1804.4,5.54184]
[1743428052599,3.0,1804.8,1804.2,5.54261]
[1743428052936,3.0,1804.8,1804.0,11.165]
[1743428052937,3.0,1804.6,1804.3,5.5423]
[1743428053134,3.0,1804.8,1804.5,5.54169]
[1743428053314,11.08122,1804.9,1804.5,5.54151]
[1743428053509,5.54047,1804.9,1804.5,11.08309]
[1743428053709,3.41337402,1805.0,1804.3,5.54206]
[1743428053914,3.0,1804.7,1804.4,5.5418]
[1743428054115,3.0,1804.9,1804.6,5.54117]
[1743428054309,37.50425,1805.3,1804.7,5.54108]
[1743428054510,6.13,1805.5,1804.8,5.54074]
[1743428054511,5.53904,1805.4,1804.8,5.54074]
[1743428054711,0.553904,1805.3,1804.6,5.54139]
[1743428054923,12.09180157,1805.5,1805.1,5.53984]
[1743428055225,5.53943,1805.3,1804.8,5.54051]
[1743428055410,12.09179157,1805.5,1805.0,5.54016]
[1743428055608,5.53906,1805.4,1804.9,5.54028]
[1743428055834,5.53893,1805.4,1804.5,0.27]
[1743428056040,3.0,1805.1,1804.8,5.54065]
[1743428056408,3.0,1805.3,1805.0,5.54]
[1743428056842,3.0,1805.3,1804.9,5.54029]
[1743428057045,3.0,1805.3,1804.6,5.54113]
[1743428057314,5.53833,1805.6,1804.7,5.54108]
[1743428057636,8.53856,1805.6,1805.2,5.53947]
[1743428057836,5.53961,1805.2,1804.8,11.08143]
[1743428058007,6.13,1805.4,1804.7,5.54106]
[1743428058206,3.0,1805.2,1805.0,5.54003]
[1743428058402,3.0,1805.2,1805.1,5.53985]
[1743428059171,3.0,1805.3,1805.1,5.53973]
[1743428059365,3.0,1805.7,1805.0,0.9856]
[1743428059679,3.95409184,1805.7,1805.4,11.07758]
[1743428059892,3.0,1805.7,1805.5,5.5385]
[1743428060045,6.13,1805.8,1805.5,5.5385]
[1743428060246,6.13,1805.8,1805.5,5.53848]
[1743428060449,3.0,1805.7,1805.3,5.53913]
[1743428060752,3.0,1805.5,1805.1,5.5396]
[1743428060949,3.0,1805.5,1805.2,5.53941]
[1743428061154,6.45105,1805.7,1805.1,5.53955]
[1743428061155,3.913,1805.7,1805.1,5.53955]
[1743428061461,3.0,1805.7,1805.1,5.53968]
[1743428061678,3.0,1805.5,1805.2,5.53929]
[1743428062003,3.0,1805.6,1805.3,5.53919]
[1743428062153,3.0,1805.6,1805.3,5.53911]
[1743428062554,3.0,1805.6,1805.2,5.53938]
[1743428062788,3.0,1805.6,1805.3,5.5391]
[1743428062992,3.0,1805.6,1805.4,5.53889]
[1743428063194,8.53834,1805.6,1805.2,5.53936]
[1743428063505,5.53751,1805.9,1805.6,5.53831]
[1743428063711,5.53751,1805.9,1805.5,5.53847]
[1743428063712,1e-05,1805.9,1805.5,5.53847]
[1743428063918,5.53751,1805.9,1805.5,5.53847]
[1743428064098,5.53751,1805.9,1805.2,11.07895]
[1743428064099,5.53812,1805.7,1805.2,11.07895]
[1743428064412,3.0,1805.7,1805.0,1.026]
[1743428064578,0.11889526,1805.5,1805.4,5.53893]
[1743428064911,0.11889526,1805.5,1805.3,5.53911]
[1743428065223,0.11889526,1805.5,1805.4,5.53893]
[1743428065380,0.11889526,1805.5,1805.4,7.200645]
[1743428065576,0.11889526,1805.5,1805.4,5.53893]
[1743428065776,0.11889526,1805.5,1805.3,5.53911]
[1743428066125,0.11889526,1805.5,1805.4,5.53893]
[1743428067392,5.26e-06,1805.5,1805.4,6.57650065]
[1743428067597,1e-05,1805.9,1805.8,5.53771]
[1743428068305,1e-05,1805.9,1805.8,6.70062844]
[1743428068485,1e-05,1805.9,1805.8,17.341269]
[1743428068684,0.1,1806.9,1806.7,5.53495]
[1743428068875,0.1,1806.9,1806.8,5.58998444]
[1743428069075,1e-05,1806.9,1806.8,5.58998444]
[1743428069287,1e-05,1806.9,1806.8,6.70247788]
[1743428069488,11.8514642,1807.8,1807.7,5.53189]
[1743428069682,0.1,1808.9,1808.1,5.53066]
[1743428069899,0.1,1808.9,1807.6,5.53201]
[1743428069900,12.48468017,1808.3,1808.2,0.05529254]
[1743428070207,5.5324,1807.6,1807.0,6.54542]
[1743428070383,3.0,1807.2,1806.7,5.53494]
[1743428070583,5.09347915,1807.5,1806.8,5.53445]
[1743428070783,4.19834,1807.5,1806.7,5.53475]
[1743428070989,5.53411,1807.0,1806.5,5.53541]
[1743428071198,5.53449,1806.9,1806.3,5.53601]
[1743428071395,8.53429,1807.0,1806.3,5.53601]
[1743428071588,5.53439,1806.9,1806.4,5.53572]
[1743428071797,1.19834,1807.5,1806.7,5.5347]
[1743428071798,5.53304,1807.4,1806.7,5.5347]
[1743428071995,5.53304,1807.4,1805.9,10.741]
[1743428071996,0.6451,1808.0,1807.0,0.9477]
[1743428072199,5.53158,1807.8,1807.2,5.53319]
[1743428072403,11.06346,1807.8,1807.2,5.53319]
[1743428072707,8.53203,1807.7,1807.1,5.53357]
[1743428072889,8.53203,1807.7,1807.0,5.534]
[1743428073088,8.53203,1807.7,1806.4,5.5357]
[1743428073089,5.53416,1807.0,1806.4,5.5357]
[1743428073311,5.53497,1806.7,1806.2,6.53302]
[1743428073477,5.53514,1806.7,1806.1,5.63673]
[1743428073682,5.53579,1806.5,1806.1,0.1]
[1743428073881,3.0,1806.6,1806.2,5.53648]
[1743428074082,3.0,1806.6,1806.1,5.63665]
[1743428074319,5.53572,1806.5,1806.1,0.1]
[1743428074502,12.30928,1807.0,1806.1,5.63673]
[1743428074698,5.53463,1806.9,1806.3,5.53596]
[1743428074910,11.06926,1806.9,1806.3,5.53596]
[1743428075111,5.53463,1806.9,1806.3,5.53596]
[1743428075282,9.17914,1807.0,1806.4,5.53571]
[1743428075478,3.0,1807.0,1806.5,5.53542]
[1743428075710,5.53452,1806.9,1806.4,5.53569]
[1743428075914,8.53344,1807.2,1806.7,5.53466]
[1743428075915,3.0,1807.2,1806.7,5.53466]
[1743428076212,3.0,1807.2,1806.4,1.107163]
[1743428076213,8.53345,1807.2,1806.4,1.107163]
[1743428076400,3.0,1806.9,1806.1,0.1]
[1743428076615,3.0,1806.6,1806.1,0.1]
[1743428076915,5.53604,1806.4,1806.1,0.1]
[1743428077088,5.53627,1806.3,1806.1,0.1]
[1743428077286,8.53556,1806.5,1806.1,0.1]
[1743428077505,0.853556,1806.5,1806.1,0.1]
[1743428077704,8.53537,1806.6,1806.1,0.1]
[1743428077917,3.0,1806.6,1806.1,0.1]
[1743428078227,14.07092,1806.6,1806.1,5.63676]
[1743428078437,8.53542,1806.6,1806.1,11.17326]
[1743428078589,3.0,1806.6,1806.2,5.53643]
[1743428078912,3.0,1806.4,1806.1,5.63652]
[1743428079112,8.5353,1806.6,1806.1,0.1]
[1743428079313,5.53605,1806.4,1806.1,0.1]
[1743428079613,18.18287,1806.6,1806.2,5.53634]
[1743428079813,0.6451,1806.7,1806.1,0.1]
[1743428080017,3.6451,1806.7,1806.3,11.07208]
[1743428080200,3.6451,1806.7,1806.3,5.53604]
[1743428080395,5.53388,1807.1,1806.4,0.05535361]
[1743428080607,0.6451,1807.4,1806.4,5.59121361]
[1743428080608,5.53424,1807.0,1806.4,5.59121361]
[1743428080814,0.6451,1807.4,1806.8,5.53452]
[1743428081017,5.53382,1807.1,1806.6,5.53509]
[1743428081214,3.0,1807.1,1806.3,0.9631]
[1743428081526,3.0,1807.1,1806.1,10.652]
[1743428081527,5.53436,1806.9,1806.1,5.6366]
[1743428081713,14.07044,1806.7,1806.2,5.53628]
[1743428082020,3.0,1806.7,1806.3,5.53612]
[1743428082220,6.13,1807.3,1806.7,5.53492]
[1743428082421,5.53414,1807.0,1806.4,5.5357]
[1743428082630,5.53414,1807.0,1806.5,11.0707]
[1743428082929,5.53458,1806.9,1806.3,0.553612]
[1743428083222,3.0,1807.0,1806.4,0.05534779]
[1743428083414,8.53403,1807.0,1806.5,5.5354]
[1743428083612,8.53403,1807.0,1806.6,5.53525]
[1743428083813,5.53348,1807.2,1806.8,5.53448]
[1743428084017,3.0,1807.2,1806.9,5.53411]
[1743428084206,3.0,1807.2,1806.8,5.53445]
[1743428084207,5.53344,1807.2,1806.8,5.53445]
[1743428084405,8.53386,1807.1,1806.7,5.53492]
[1743428084614,0.853386,1807.1,1806.1,0.1]
[1743428084795,6.12203,1807.0,1806.1,0.1]
[1743428085000,8.53648,1806.2,1806.1,0.1]
[1743428085221,9.12448,1806.2,1806.1,0.1]
[1743428085421,3.0,1806.2,1806.1,0.1]
[1743428085645,8.53648,1806.2,1806.1,0.1]
[1743428085844,31.942,1806.4,1806.1,0.1]
[1743428086334,3.0,1806.7,1806.1,0.1]
[1743428086650,11.07209,1806.4,1806.1,0.1]
[1743428086845,3.0,1806.1,1805.3,5.53921]
[1743428087002,5.53955,1805.2,1805.1,0.1]
[1743428087196,5.53955,1805.2,1804.1,1.33051283]
[1743428087197,8.54139,1804.6,1804.1,1.33051283]
[1743428087420,0.588,1805.3,1804.5,5.8117]
[1743428087623,6.12483,1806.1,1806.0,290.0]
[1743428087823,9.12483,1806.1,1806.0,274.54672]
[1743428088026,5.53933,1805.3,1804.8,5.54077]
[1743428088228,3.0,1805.5,1804.6,7.07893]
[1743428088413,5.21921481,1805.3,1804.6,5.54126]
[1743428088601,3.0,1805.2,1804.5,0.27]
[1743428089133,3.0,1805.2,1804.5,5.81169]
[1743428089306,0.588,1805.4,1804.6,5.54131]
[1743428089307,3.588,1805.4,1804.6,5.54131]
[1743428089508,3.583,1805.4,1805.0,5.54013]
[1743428089714,3.583,1805.4,1804.5,0.27]
[1743428089909,5.03220996,1805.4,1804.7,5.54096]
[1743428090109,5.03220996,1805.4,1804.6,5.54135]
[1743428090317,5.03220996,1805.4,1804.7,5.54093]
[1743428090511,5.03220996,1805.4,1804.6,5.54126]
[1743428090710,3.583,1805.4,1805.0,5.54008]
[1743428090911,3.583,1805.4,1804.9,5.54028]
[1743428091115,3.583,1805.4,1805.0,5.54014]
[1743428091399,3.583,1805.4,1804.7,5.54103]
[1743428091703,31.952,1806.3,1805.7,5.53799]
[1743428091901,0.40573367,1805.9,1805.3,5.53901]
[1743428092101,35.83500161,1806.3,1805.5,5.53863]
[1743428092303,35.83500161,1806.3,1805.9,5.53724]
[1743428092513,31.952,1806.3,1806.0,5.53685]
[1743428092726,31.952,1806.3,1806.0,5.53683]